Cogmind - Beta 13 @@@ ROGUE MODE // 2024.04.06 @ 18:28:51 Player: nllptrxc Result: Destroyed by P-80 Master with Gamma Rifle Performance ------------- Evolutions (9) 4500 Regions Visited (18) 3600 Robots Destroyed (127) 635 Value Destroyed (3181) 3181 Prototype IDs (31) 620 Alien Tech Used (0) 0 Bonus (591) 591 TOTAL SCORE: 13127 Bonus ------- High Alert Combat Kills 55 Follower Combat Kills 353 Aligned with FarCom 300 Friendly Fire -117 Cogmind --------- Core Integrity 0/1600 Matter 260/300 Energy 150/150 System Corruption 3% Temperature Cool (0) Movement Core (350) Ox6 Location -1/Access Parts ------- > --- POWER (2) -------- Micro Antimatter Reactor > --- PROPULSION (5) --- (None) > --- UTILITY (16) ----- Medium Storage Unit Advanced Cloaking Device > --- WEAPON (2) ------- (None) > --- INVENTORY (10) --- (None) Peak State ------------ > --- POWER ------------ Light Deuterium Engine > --- PROPULSION ------- Cooled VTOL Module Cooled VTOL Module Cooled VTOL Module Nuclear Pulse Array > --- UTILITY ---------- Structural Scanner Machine Analyzer Enhanced Optical Array Advanced Reaction Control System Improved Utility Shielding Layered Light Armor Plating Hacking Suite Hacking Suite Hacking Suite Hacking Suite Hacking Suite System Shield System Shield System Shield System Shield > --- WEAPON ----------- Enhanced Nova Cannon > --- INVENTORY -------- Micro Antimatter Reactor Improved VTOL Module Q-thruster Medium Storage Unit Advanced Cloaking Device [Rating: 92] Favorites ----------- Power Reinforced Ion Engine Engine Reinforced Ion Engine Power Core Light Nuclear Core Reactor Micro Antimatter Reactor Propulsion Light Treads Treads Light Treads Flight Unit Cesium-ion Thruster Utility Hacking Suite Device Structural Scanner Storage Huge Storage Unit Processor Machine Analyzer Hackware Hacking Suite Protection Light Armor Plating Weapon Minigun Energy Gun Medium Laser Energy Cannon Beam Cannon Ballistic Gun Minigun Ballistic Cannon Bore Cannon Launcher Improved Grenade Launcher Impact Weapon Heavy Hammer Slashing Weapon Scythe Build | -11 -10 -10 -9 -9 -9 -8 -8 -8 -7 -6 -5 -4 -4 -4 -4 -3 -2 -1 ------- Run | Yrd Mat Min Mat Min Exi Min Mat Sto Fac Fac Fac Fac Was Fac Ext Res Res Acc Slots Evolved 18 | . . . 2 . . . 2 . 2 2 2 2 . . . 2 2 2 Power 1 | . . . . . . . . . . . . . . . . 1 . . Propulsion 3 | . . . 1 . . . 1 . . . . . . . . 1 . . Utility 14 | . . . 1 . . . 1 . 2 2 2 2 . . . . 2 2 Weapon . | . . . . . . . . . . . . . . . . . . . Parts Attached 184 | 7 8 1 25 1 . 1 16 33 23 21 14 2 . . 4 12 5 11 Power 12 | 1 2 . 1 . . . 1 1 3 1 1 . . . . . . 1 Engine 10 | 1 2 . 1 . . . 1 1 2 1 1 . . . . . . . Core 1 | . . . . . . . . . 1 . . . . . . . . . Reactor 1 | . . . . . . . . . . . . . . . . . . 1 Propulsion 53 | 2 1 . 7 . . . 8 11 7 3 5 . . . 1 2 2 4 Treads 29 | 2 1 . 7 . . . 8 11 . . . . . . . . . . Leg . | . . . . . . . . . . . . . . . . . . . Wheel . | . . . . . . . . . . . . . . . . . . . Hover . | . . . . . . . . . . . . . . . . . . . Flight 24 | . . . . . . . . . 7 3 5 . . . 1 2 2 4 Utility 81 | 2 2 1 9 1 . 1 3 7 10 17 8 2 . . 3 8 2 5 Device 18 | 1 1 . . 1 . . . 1 2 6 1 1 . . 1 2 . 1 Storage 6 | 1 1 1 1 . . . . . 1 . . . . . . . . 1 Processor 3 | . . . 1 . . . . . 1 . . 1 . . . . . . Hackware 21 | . . . . . . . . . 4 8 4 . . . 1 1 . 3 Protection 33 | . . . 7 . . 1 3 6 2 3 3 . . . 1 5 2 . Artifact . | . . . . . . . . . . . . . . . . . . . Weapon 38 | 2 3 . 8 . . . 4 14 3 . . . . . . 2 1 1 Energy Gun 3 | 2 . . 1 . . . . . . . . . . . . . . . Energy Cannon 4 | . 3 . . . . . . . . . . . . . . . 1 . Ballistic Gun 13 | . . . 6 . . . 3 4 . . . . . . . . . . Ballistic Cannon 3 | . . . 1 . . . . 2 . . . . . . . . . . Launcher 8 | . . . . . . . . 3 2 . . . . . . 2 . 1 Special Weapon . | . . . . . . . . . . . . . . . . . . . Impact Weapon 3 | . . . . . . . 1 2 . . . . . . . . . . Slashing Weapon 4 | . . . . . . . . 3 1 . . . . . . . . . Piercing Weapon . | . . . . . . . . . . . . . . . . . . . Special Melee Weapon . | . . . . . . . . . . . . . . . . . . . Unidentified Prototypes 3 | . . . . 1 . . . 1 . . . . . . . . 1 . Parts Lost 31 | . 2 . 1 . . . . 4 1 3 4 . . . 1 2 . 13 Power 3 | . 1 . . . . . . 1 . . . . . . . . . 1 Propulsion 9 | . 1 . . . . . . 1 1 1 1 . . . . 1 . 3 Utility 16 | . . . . . . . . 2 . 2 2 . . . 1 . . 9 Weapon 3 | . . . 1 . . . . . . . 1 . . . . 1 . . Highest Loss Streak 13 | . 2 . 1 . . . . 3 1 2 4 . . . 1 1 . 13 To Critical Strikes . | . . . . . . . . . . . . . . . . . . . Average Slot Usage (%) 96 | . 99 100 99 100 100 100 99 99 91 91 93 84 84 84 85 83 81 74 Engine 9 | . 14 14 11 11 11 11 8 8 6 5 5 5 5 5 5 4 4 3 Treads 24 | . 28 28 33 33 33 33 36 35 . . . . . . . . . . Flight 6 | . . . . . . . . . 29 25 22 21 21 21 21 21 16 14 Device 6 | . 14 14 1 2 11 4 . 7 9 5 4 9 10 10 12 8 8 7 Storage 9 | . 14 14 10 11 11 11 9 9 7 6 5 5 5 5 5 2 . . Processor 2 | . . . 5 . . . . . 4 6 5 10 10 10 10 9 8 7 Hackware 7 | . . . . . . . . . 18 32 40 31 31 31 30 29 30 31 Protection 12 | . . . 15 19 11 18 27 19 3 . . . . . . 4 8 6 Energy Gun 2 | . 18 14 3 . . . . . . . . . . . . . . . Energy Cannon 1 | . 8 14 1 . . . . . . . . . . . . . 3 3 Ballistic Gun 8 | . . . 15 22 22 22 17 7 . . . . . . . . . . Ballistic Cannon 1 | . . . 2 . . . . 4 . . . . . . . . . . Slashing Weapon 1 | . . . . . . . . 4 6 6 4 . . . . . . . Naked Turns 6 | . . . . . . . . . . . . . . . . . . 6 Heaviest Build 113 | 12 31 89 108 103 103 103 107 113 113 20 22 21 19 19 23 27 28 28 Greatest Support 80 | 40 40 40 60 60 60 60 80 80 80 20 22 20 20 26 24 28 28 28 Greatest Overweight (x) 2 | 1 . 2 1 1 1 1 1 1 1 . 1 1 . . 1 1 1 1 Average Overweight (x) . | . . 1 1 1 1 1 1 1 . . . . . . . . . . Largest Inventory Capacity 25 | 8 15 25 25 25 25 25 25 25 25 10 10 10 10 10 10 10 5 10 Average Capacity 19 | 7 14 22 24 25 25 25 25 25 10 10 10 10 10 10 10 8 5 5 Most Carried 25 | 4 15 16 25 25 25 25 25 25 25 10 9 5 6 6 6 5 5 5 Average Carried 17 | 2 12 15 22 24 24 25 24 24 10 9 8 4 5 6 5 3 4 4 Final Capacity 25 | 8 15 25 25 25 25 25 25 25 10 10 10 10 10 10 10 5 5 10 Final Carried 25 | 4 14 16 25 25 25 25 25 25 10 10 5 5 6 6 6 4 5 . Class Distribution -------------------- 51% | Scavenger-Mutant 21% | Mutant 11% | Hacker-Scout 11% | Wizard-Scout 3% | Hacker-Sprinter Dominant Class ---------------- Mutant | -10/Materials Mutant | -10/Mines Scavenger-Mutant | -9/Materials Scavenger-Mutant | -9/Mines Scavenger-Mutant | -9/Exiles Scavenger-Mutant | -8/Mines Scavenger-Mutant | -8/Materials Scavenger-Mutant | -8/Storage Hacker-Scout | -7/Factory Hacker-Scout | -6/Factory Wizard-Scout | -5/Factory Wizard-Scout | -4/Factory Wizard-Scout | -4/Waste Wizard-Scout | -4/Factory Wizard-Scout | -4/Extension Wizard-Scout | -3/Research Wizard-Scout | -2/Research Wizard-Scout | -1/Access Resources | -11 -10 -10 -9 -9 -9 -8 -8 -8 -7 -6 -5 -4 -4 -4 -4 -3 -2 -1 ----------- Run | Yrd Mat Min Mat Min Exi Min Mat Sto Fac Fac Fac Fac Was Fac Ext Res Res Acc Matter Collected 3565 | 270 78 6 762 . . . 618 878 277 164 69 . . . 6 112 260 65 Remotely . | . . . . . . . . . . . . . . . . . . . Salvage Created 5390 | 135 565 194 1294 20 . . 956 1475 222 164 . . . . . . 260 105 Parts 307 | 6 47 5 74 2 . . 56 86 9 8 . . . . . . 8 6 Haulers Intercepted 16 | . 2 . 6 . . . 3 4 . . . . . . . . . 1 Recyclers Shooed 6 | . . 1 2 . . . 2 1 . . . . . . . . . . Parts Field Recycled . | . . . . . . . . . . . . . . . . . . . Retrieved Matter . | . . . . . . . . . . . . . . . . . . . Parts Self-Destructed . | . . . . . . . . . . . . . . . . . . . Prevented . | . . . . . . . . . . . . . . . . . . . Kills | -11 -10 -10 -9 -9 -9 -8 -8 -8 -7 -6 -5 -4 -4 -4 -4 -3 -2 -1 ------- Run | Yrd Mat Min Mat Min Exi Min Mat Sto Fac Fac Fac Fac Was Fac Ext Res Res Acc Combat Hostiles Destroyed 71 | . 10 1 18 . . . 14 22 5 1 . . . . . . . . Melee 11 | . . . . . . . . 9 1 1 . . . . . . . . Guns 38 | . 2 . 13 . . . 14 9 . . . . . . . . . . Cannons 13 | . 7 1 5 . . . . . . . . . . . . . . . AOE 7 | . . . . . . . . 3 4 . . . . . . . . . Classes Destroyed 13 | 2 6 . 3 . . . . 1 1 . . . . . . . . . Worker 6 | . . . 1 1 . . 3 1 . . . . . . . . . . Builder 3 | . 1 . 1 . . . . 1 . . . . . . . . . . Tunneler 2 | 2 . . . . . . . . . . . . . . . . . . Hauler 16 | . 2 . 6 . . . 3 4 . . . . . . . . . 1 Recycler 14 | 1 2 1 1 . . . 2 3 1 1 . . . . . . 2 . Operator 7 | . 1 . 4 . . . . 1 1 . . . . . . . . . Watcher 7 | . 3 . 3 . . . . 1 . . . . . . . . . . Swarmer 17 | . 6 . 5 . . . 3 3 . . . . . . . . . . Grunt 27 | . 4 1 6 . . . 6 7 3 . . . . . . . . . Brawler 2 | . . . 1 . . . . . 1 . . . . . . . . . Sentry 22 | . . . 6 . . . 5 11 . . . . . . . . . . Hunter 1 | . . . . . . . . 1 . . . . . . . . . . Programmer 2 | . . . . . . . . . 1 1 . . . . . . . . Thug 1 | . . . 1 . . . . . . . . . . . . . . . Best Kill Streak 5 | 1 4 2 3 1 . . 4 5 4 1 . . . . . . 1 1 Combat Bots Only 4 | . 4 1 3 . . . 3 3 4 1 . . . . . . . . Max Kills in Single Turn 4 | 1 1 1 2 1 . . 2 4 3 1 . . . . . . 1 1 Gunslinging 1 | . . . 1 . . . . . . . . . . . . . . . Exploded 3 | . . . . . . . . 3 3 . . . . . . . . . Melee 1 | . . . . . . . . 1 1 1 . . . . . . . . Uniques/NPCs Destroyed . | . . . . . . . . . . . . . . . . . . . Combat | -11 -10 -10 -9 -9 -9 -8 -8 -8 -7 -6 -5 -4 -4 -4 -4 -3 -2 -1 -------- Run | Yrd Mat Min Mat Min Exi Min Mat Sto Fac Fac Fac Fac Was Fac Ext Res Res Acc Hostile Shots Fired 702 | . 40 7 74 . . . 66 199 20 42 10 . 1 3 22 26 6 186 Missed 235 | . 12 2 14 . . . 12 41 9 16 6 . 1 2 13 17 5 85 Damage Taken 8125 | . 517 65 712 . . . 749 2193 128 342 395 . . 12 305 235 . 2472 Core 2462 | . 48 . 91 . . . 69 157 29 127 62 . . 12 187 69 . 1611 Absorbed by Shields 22 | . . . . . . . . . 22 . . . . . . . . . Redirected to Shielding 123 | . . . . . . . . . . . . . . . . . . 123 Ignored by Resistances 266 | . . . . . . . 56 195 15 . . . . . . . . . Regen/Repaired (Parts) 1068 | . 97 . 544 . . . 168 . . 49 . . . . . 210 . . Core Remaining (%) 86 | 100 . 80 . . . 77 . 58 95 85 93 . . . 82 94 100 . Volleys Fired 327 | 10 41 5 117 . . . 55 66 4 . . . . . . 6 12 11 Largest 2 | 2 2 2 2 . . . 2 2 1 . . . . . . 1 1 1 Hottest 120 | 90 110 110 110 . . . 50 82 36 . . . . . . 36 120 120 Shots Fired 583 | 20 82 10 202 . . . 110 126 4 . . . . . . 6 12 11 Gun 471 | 20 53 5 169 . . . 110 114 . . . . . . . . . . Cannon 98 | . 29 5 33 . . . . 8 . . . . . . . . 12 11 Launcher 14 | . . . . . . . . 4 4 . . . . . . 6 . . Special . | . . . . . . . . . . . . . . . . . . . Kinetic 390 | . . . 158 . . . 110 122 . . . . . . . . . . Thermal 179 | 20 82 10 44 . . . . . . . . . . . . . 12 11 Explosive 14 | . . . . . . . . 4 4 . . . . . . 6 . . Electromagnetic . | . . . . . . . . . . . . . . . . . . . Robot Hit Streak 27 | 8 8 5 27 . . . 16 13 . . . . . . . . 5 6 Robot Miss Streak 5 | 1 2 1 5 . . . 2 4 . . . . . . . . . . Penetration Max . | . . . . . . . . . . . . . . . . . . . Secondary Targets 6 | . . . 2 . . . 2 2 . . . . . . . . . . Max Gunslinging Chain 1 | . . . 1 . . . 1 1 . . . . . . . . . . Shots Hit Robots 406 | 15 55 8 130 . . . 74 108 5 6 . . . . . . 4 1 Core Hits 181 | 4 23 4 50 1 . . 36 46 11 2 . . . . . 1 2 1 Critical Kills 2 | . . . 1 . . . . 1 . . . . . . . . . . Critical Parts Destroyed 1 | . . . . . . . . 1 . . . . . . . . . . Critical Strikes 13 | 1 3 . 3 . . . . 3 1 2 . . . . . . . . Burn 4 | 1 3 . . . . . . . . . . . . . . . . . Destroy 3 | . . . 1 . . . . 2 . . . . . . . . . . Blast 2 | . . . 2 . . . . . . . . . . . . . . . Smash 1 | . . . . . . . . 1 . . . . . . . . . . Sever 3 | . . . . . . . . . 1 2 . . . . . . . . Melee Attacks 199 | . . . . . . . 1 143 24 20 11 . . . . . . . Impact 8 | . . . . . . . 1 7 . . . . . . . . . . Slashing 191 | . . . . . . . . 136 24 20 11 . . . . . . . Piercing . | . . . . . . . . . . . . . . . . . . . Sneak Attacks 9 | . . . . . . . . 7 1 1 . . . . . . . . Combat Hostiles 1 | . . . . . . . . 1 . . . . . . . . . . Follow-up Attacks . | . . . . . . . . . . . . . . . . . . . Damage Inflicted 9445 | 181 847 129 2119 23 . . 1373 3031 1293 223 . . . . . 10 171 45 Guns 4992 | 181 431 38 1783 . . . 1358 1201 . . . . . . . . . . Cannons 1045 | . 332 87 327 . . . . 84 . . . . . . . . 171 44 Explosions 1333 | . 68 . . . . . . 192 1063 . . . . . . 10 . . Melee 1983 | . . . . . . . . 1530 230 223 . . . . . . . . Ramming 92 | . 16 4 9 23 . . 15 24 . . . . . . . . . 1 Kinetic 4378 | . . . 1735 . . . 1358 1285 . . . . . . . . . . Thermal 1727 | 181 831 125 375 . . . . . . . . . . . . . 171 44 Explosive 1265 | . . . . . . . . 192 1063 . . . . . . 10 . . Electromagnetic . | . . . . . . . . . . . . . . . . . . . Impact 66 | . . . . . . . . 66 . . . . . . . . . . Slashing 1917 | . . . . . . . . 1464 230 223 . . . . . . . . Piercing . | . . . . . . . . . . . . . . . . . . . Highest Corruption 13 | . . . . . . . . . 1 2 13 . 7 7 7 1 . 3 Average Corruption 2 | . . . . . . . . . 1 1 13 . 7 7 7 1 . 2 Corruption Purged . | . . . . . . . . . . . . . . . . . . . Corruption Blocked . | . . . . . . . . . . . . . . . . . . . Effects 19 | . . . . . . . . . 1 9 1 . 1 1 6 . . . Message Errors 5 | . . . . . . . . . 1 3 . . . . 1 . . . Matter Fused 4 | . . . . . . . . . . 3 . . . . 1 . . . Heat Flow Errors 4 | . . . . . . . . . . 1 . . . 1 2 . . . Energy Discharges 1 | . . . . . . . . . . 1 . . . . . . . . Parts Rejected 1 | . . . . . . . . . . . . . . . 1 . . . Data Loss (minor) 2 | . . . . . . . . . . 1 1 . . . . . . . Data Loss (major) 2 | . . . . . . . . . . . . . 1 . 1 . . . Overload Shots . | . . . . . . . . . . . . . . . . . . . Overflow Damage 386 | . 128 . . . . . . 142 83 7 . . . . . . 26 . Projectiles 37 | . 11 . . . . . . . . . . . . . . . 26 . Explosions 198 | . 117 . . . . . . . 81 . . . . . . . . . Melee 151 | . . . . . . . . 142 2 7 . . . . . . . . Knockbacks 1 | . 1 . . . . . . . . . . . . . . . . . Impact 1 | . 1 . . . . . . . . . . . . . . . . . Kinetic . | . . . . . . . . . . . . . . . . . . . Secondary . | . . . . . . . . . . . . . . . . . . . Self-Inflicted Damage 214 | . 214 . . . . . . . . . . . . . . . . . Shots 2 | . 2 . . . . . . . . . . . . . . . . . Rammed 12 | . 2 1 1 2 . . 2 3 . . . . . . . . . 1 Targets Rammed 13 | . 2 1 1 2 . . 3 3 . . . . . . . . . 1 Kicked . | . . . . . . . . . . . . . . . . . . . Crushed 1 | . . . . . . . 1 . . . . . . . . . . . Highest Temperature 493 | 90 252 15 493 . . . 359 394 20 166 1 . . 123 132 . 362 61 Average Temperature 86 | 32 39 7 90 . . . 92 124 10 83 1 . . 73 55 . 74 28 Received Heat Transfer 2133 | . 129 39 207 . . . 432 1161 63 36 9 . . . 18 21 . 18 Effects 5 | . . . 2 . . . . 3 . . . . . . . . . . Interference 1 | . . . 1 . . . . . . . . . . . . . . . Matter Decay 1 | . . . . . . . . 1 . . . . . . . . . . Short Circuit 2 | . . . 1 . . . . 1 . . . . . . . . . . Damage (minor) 1 | . . . . . . . . 1 . . . . . . . . . . Siege Activations . | . . . . . . . . . . . . . . . . . . . Robots Corrupted . | . . . . . . . . . . . . . . . . . . . Combat Hostiles . | . . . . . . . . . . . . . . . . . . . Parts Fried 1 | . . . . . . . . 1 . . . . . . . . . . Impact Corruptions 1 | . . . . . . . . 1 . . . . . . . . . . Robots Melted 1 | . 1 . . . . . . . . . . . . . . . . . Combat Hostiles 1 | . 1 . . . . . . . . . . . . . . . . . Parts Melted 8 | . 6 . 1 . . . . . . . . . . . . . 1 . Heat Transferred 3965 | 545 2199 296 740 . . . . . . . . . . . . . 148 37 Parts Sabotaged . | . . . . . . . . . . . . . . . . . . . Parts Stolen . | . . . . . . . . . . . . . . . . . . . Parts Stripped . | . . . . . . . . . . . . . . . . . . . Power Chain Reactions . | . . . . . . . . . . . . . . . . . . . Alert | -11 -10 -10 -9 -9 -9 -8 -8 -8 -7 -6 -5 -4 -4 -4 -4 -3 -2 -1 ------- Run | Yrd Mat Min Mat Min Exi Min Mat Sto Fac Fac Fac Fac Was Fac Ext Res Res Acc Peak Influence 611 | 15 128 108 611 243 . . 181 283 305 129 65 53 48 48 109 375 204 380 Initial 238 | . 9 42 . 238 . . . 76 125 123 . 20 18 33 14 57 204 113 Average 155 | 6 65 43 339 207 . . 80 188 137 29 13 20 39 19 59 162 108 218 Maximum Alert Level 2 | . . . 2 1 . . . 1 1 . . . . . . 1 1 1 Low Security (%) 66 | 100 100 100 26 16 . 100 100 36 78 100 100 100 100 100 100 73 96 42 Level 1 25 | . . . 32 83 . . . 63 21 . . . . . . 26 3 57 Level 2 8 | . . . 40 . . . . . . . . . . . . . . . Level 3 . | . . . . . . . . . . . . . . . . . . . Level 4 . | . . . . . . . . . . . . . . . . . . . Level 5 . | . . . . . . . . . . . . . . . . . . . High Security . | . . . . . . . . . . . . . . . . . . . Max Security . | . . . . . . . . . . . . . . . . . . . Squads Dispatched 36 | . 1 . 4 . . . 1 7 6 8 . 2 . . 1 1 2 3 Investigation 16 | . . . . . . . . 3 4 6 . 1 . . . . 1 1 Extermination 7 | . . . . . . . . . 1 2 . 1 . . . 1 1 1 Reinforcement 10 | . 1 . 4 . . . 1 1 1 . . . . . 1 . . 1 Assault . | . . . . . . . . . . . . . . . . . . . Garrison 3 | . . . . . . . . 3 . . . . . . . . . . Intercept . | . . . . . . . . . . . . . . . . . . . Searches Triggered . | . . . . . . . . . . . . . . . . . . . Construction Impeded . | . . . . . . . . . . . . . . . . . . . Haulers Reinforced . | . . . . . . . . . . . . . . . . . . . Active Scanning Responses . | . . . . . . . . . . . . . . . . . . . Cargo Convoy Interrupts . | . . . . . . . . . . . . . . . . . . . Stealth | -11 -10 -10 -9 -9 -9 -8 -8 -8 -7 -6 -5 -4 -4 -4 -4 -3 -2 -1 --------- Run | Yrd Mat Min Mat Min Exi Min Mat Sto Fac Fac Fac Fac Was Fac Ext Res Res Acc Distress Signals 16 | . . . 5 . . . 2 3 . 1 . . . 1 . . 1 3 Communications Jammed . | . . . . . . . . . . . . . . . . . . . Distress Signals . | . . . . . . . . . . . . . . . . . . . Times Spotted 241 | . 19 2 65 . . . 25 27 12 9 3 2 6 6 5 19 8 33 Peak Tracking Total 21 | . 3 2 5 . . . 4 5 6 3 3 1 6 6 5 7 6 21 Tactical Retreats 24 | . 2 . 2 . . . . . 2 4 1 . . 1 2 4 1 5 Traps | -11 -10 -10 -9 -9 -9 -8 -8 -8 -7 -6 -5 -4 -4 -4 -4 -3 -2 -1 ------- Run | Yrd Mat Min Mat Min Exi Min Mat Sto Fac Fac Fac Fac Was Fac Ext Res Res Acc Traps Triggered 8 | . . . . . . . . 2 1 1 1 2 . . . . . 1 Indirectly . | . . . . . . . . . . . . . . . . . . . Trap Hack Attempts . | . . . . . . . . . . . . . . . . . . . Triggered . | . . . . . . . . . . . . . . . . . . . Disarmed . | . . . . . . . . . . . . . . . . . . . Reprogrammed . | . . . . . . . . . . . . . . . . . . . Reused . | . . . . . . . . . . . . . . . . . . . Traps Extracted . | . . . . . . . . . . . . . . . . . . . Installed . | . . . . . . . . . . . . . . . . . . . Triggered . | . . . . . . . . . . . . . . . . . . . Machines | -11 -10 -10 -9 -9 -9 -8 -8 -8 -7 -6 -5 -4 -4 -4 -4 -3 -2 -1 ---------- Run | Yrd Mat Min Mat Min Exi Min Mat Sto Fac Fac Fac Fac Was Fac Ext Res Res Acc Machines Disabled 20 | . 3 . 4 . . . 2 7 4 . . . . . . . . . Max in Single Turn 4 | . 3 . 1 . . . 1 1 4 . . . . . . . . . Garrison Access 1 | . . . . . . . 1 . . . . . . . . . . . Machines Repaired . | . . . . . . . . . . . . . . . . . . . Machines Dismantled . | . . . . . . . . . . . . . . . . . . . Machines Sabotaged . | . . . . . . . . . . . . . . . . . . . Overloaded Fab Kills . | . . . . . . . . . . . . . . . . . . . Hacking | -11 -10 -10 -9 -9 -9 -8 -8 -8 -7 -6 -5 -4 -4 -4 -4 -3 -2 -1 --------- Run | Yrd Mat Min Mat Min Exi Min Mat Sto Fac Fac Fac Fac Was Fac Ext Res Res Acc Machines Accessed 82 | . 8 1 9 1 1 . 6 10 7 13 5 4 . 3 . 6 4 4 Terminals 59 | . 7 1 7 . . . 2 9 5 7 4 4 . 3 . 5 2 3 Fabricators 9 | . . . . . . . . . 2 5 . . . . . . 1 1 Repair Stations 7 | . 1 . 1 . . . 2 1 . 1 . . . . . 1 . . Recycling Units . | . . . . . . . . . . . . . . . . . . . Scanalyzers 3 | . . . 1 . . . 1 . . . . . . . . . 1 . Garrison Access 2 | . . . . . . . 1 . . . 1 . . . . . . . Total Hacks 261 | . 21 4 29 1 1 . 19 30 25 49 17 13 . 9 . 13 17 13 Successful 165 | . 8 . 22 1 1 . 13 11 22 38 16 6 . 6 . 9 8 4 Failed 94 | . 13 4 7 . . . 6 19 3 10 . 7 . 3 . 4 9 9 Catastrophic 14 | . 2 2 1 . . . 1 3 . . . . . 2 . 1 . 2 Database Lockouts 2 | . . . . . . . . . . 1 1 . . . . . . . Manual 116 | . 15 . 17 . 1 . 6 7 16 21 6 3 . 5 . 6 8 5 Terminals 189 | . 18 4 21 . . . 7 27 17 26 16 13 . 9 . 11 9 11 Fabricators 37 | . . . . . . . . . 8 21 . . . . . . 6 2 Repair Stations 21 | . 3 . 4 . . . 7 3 . 2 . . . . . 2 . . Recycling Units . | . . . . . . . . . . . . . . . . . . . Scanalyzers 10 | . . . 4 . . . 4 . . . . . . . . . 2 . Garrison Access 2 | . . . . . . . 1 . . . 1 . . . . . . . Terminal Hacks 87 | . 4 . 10 1 1 . 3 9 7 15 14 5 . 6 . 6 4 2 Record 23 | . . . 1 . . . 1 2 1 5 8 1 . . . 2 1 1 Part Schematic 2 | . . . 1 . . . . . . 1 . . . . . . . . Robot Analysis 2 | . . . 2 . . . . . . . . . . . . . . . Prototype ID Bank 1 | . . . 1 . . . . . . . . . . . . . . . Open Door 4 | . . . . 1 . . . 2 . . . . . 1 . . . . Open DSF 1 | . . . . . . . . . . . . . . . . 1 . . Level Access Points 5 | . . . . . . . . . 1 1 1 . . . . 1 . 1 Branch Access Points 6 | . . . 1 . . . 1 . 1 . 1 . . 1 . 1 . . Emergency Access Points 1 | . 1 . . . . . . . . . . . . . . . . . Machine Index 2 | . . . . . . . . . . 1 1 . . . . . . . Terminal Index 12 | . 1 . 1 . . . 1 1 2 1 1 1 . 1 . 1 1 . Alert Level 5 | . . . . . . . . . 1 2 . . . 1 . . 1 . Unreport Threat 3 | . . . . . . . . . . 1 . . . 1 . . 1 . Locate Traps 6 | . 1 . 1 . . . . 2 . . 2 . . . . . . . Recall Investigation 2 | . . . . . . . . . . 2 . . . . . . . . Recall Extermination 4 | . . . . . . . . . 1 1 . 2 . . . . . . Hauler Manifests 4 | . 1 . 2 . . . . 1 . . . . . . . . . . Registered Components 3 | . . . . . . . . 1 . . . 1 . 1 . . . . Derelict Proto ID Bank 1 | . . . . . 1 . . . . . . . . . . . . . Fabricator Hacks 25 | . . . . . . . . . 5 16 . . . . . . 2 2 Network Status 2 | . . . . . . . . . 1 . . . . . . . 1 . Load Schematic 15 | . . . . . . . . . 3 10 . . . . . . 1 1 Build 8 | . . . . . . . . . 1 6 . . . . . . . 1 Repair Station Hacks 17 | . 3 . 4 . . . 5 1 . 2 . . . . . 2 . . Scan Component 10 | . 2 . 2 . . . 3 1 . 1 . . . . . 1 . . Repair 7 | . 1 . 2 . . . 2 . . 1 . . . . . 1 . . Recycling Unit Hacks . | . . . . . . . . . . . . . . . . . . . Scanalyzer 6 | . . . 4 . . . 2 . . . . . . . . . . . Insert Component 4 | . . . 2 . . . 2 . . . . . . . . . . . Analyze 2 | . . . 2 . . . . . . . . . . . . . . . Garrison Access Hacks 1 | . . . . . . . 1 . . . . . . . . . . . Seal Access 1 | . . . . . . . 1 . . . . . . . . . . . Unauthorized Hacks 29 | . 1 . 4 . . . 2 1 10 5 2 1 . . . 1 2 . Terminals 21 | . 1 . 4 . . . 2 1 8 1 1 1 . . . 1 1 . Assimilate 6 | . 1 . . . . . 1 . 3 . . . . . . 1 . . Botnet 4 | . . . . . . . . . 3 . . . . . . . 1 . Operators 11 | . . . 4 . . . 1 1 2 1 1 1 . . . . . . Fabricators 7 | . . . . . . . . . 2 4 . . . . . . 1 . Recompile 7 | . . . . . . . . . 2 4 . . . . . . 1 . Repair Stations . | . . . . . . . . . . . . . . . . . . . Recycling Units . | . . . . . . . . . . . . . . . . . . . Scanalyzers . | . . . . . . . . . . . . . . . . . . . Garrison Access 1 | . . . . . . . . . . . 1 . . . . . . . Watchers 1 | . . . . . . . . . . . 1 . . . . . . . Data Cores Recovered 1 | . . . . . . . . . 1 . . . . . . . . . Used 1 | . . . . . . . . . 1 . . . . . . . . . Hacking Detections 67 | . 8 1 8 . . . 5 8 5 12 3 3 . 2 . 5 4 3 Full Trace Events 13 | . 1 1 1 . . . 1 4 2 2 . 1 . . . . . . Feedback Events . | . . . . . . . . . . . . . . . . . . . Feedback Blocked . | . . . . . . . . . . . . . . . . . . . Robot Schematics Acquired . | . . . . . . . . . . . . . . . . . . . Robots Built . | . . . . . . . . . . . . . . . . . . . Authchips . | . . . . . . . . . . . . . . . . . . . Time . | . . . . . . . . . . . . . . . . . . . Total Robot Build Rating . | . . . . . . . . . . . . . . . . . . . Part Schematics Acquired 4 | . . . 3 . . . . . . 1 . . . . . . . . Parts Built 8 | . . . . . . . . . 1 6 . . . . . . . 1 Authchips 7 | . . . . . . . . . 1 5 . . . . . . . 1 Time 605 | . . . . . . . . . 73 488 . . . . . . . 44 Total Part Build Rating 29 | . . . . . . . . . 3 22 . . . . . . . 4 Parts Repaired 7 | . 1 . 2 . . . 2 . . 1 . . . . . 1 . . Time 242 | . 26 . 52 . . . 82 . . 38 . . . . . 44 . . Parts Recycled . | . . . . . . . . . . . . . . . . . . . Recycled Matter . | . . . . . . . . . . . . . . . . . . . Retrieved Matter . | . . . . . . . . . . . . . . . . . . . Retrieved Components . | . . . . . . . . . . . . . . . . . . . Parts Scanalyzed 3 | . . . 2 . . . 1 . . . . . . . . . . . Part Schematics Acquired 2 | . . . 2 . . . . . . . . . . . . . . . Parts Damaged . | . . . . . . . . . . . . . . . . . . . Bothacking | -11 -10 -10 -9 -9 -9 -8 -8 -8 -7 -6 -5 -4 -4 -4 -4 -3 -2 -1 ------------ Run | Yrd Mat Min Mat Min Exi Min Mat Sto Fac Fac Fac Fac Was Fac Ext Res Res Acc Used RIF Installer . | . . . . . . . . . . . . . . . . . . . Robots Hacked . | . . . . . . . . . . . . . . . . . . . Non-combat . | . . . . . . . . . . . . . . . . . . . Combat . | . . . . . . . . . . . . . . . . . . . Robot Hacks Applied . | . . . . . . . . . . . . . . . . . . . Relay Couplers Released . | . . . . . . . . . . . . . . . . . . . Fabnet Peak Effective % . | . . . . . . . . . . . . . . . . . . . Robots Rewired . | . . . . . . . . . . . . . . . . . . . Allies Hacked . | . . . . . . . . . . . . . . . . . . . Hacks Repelled . | . . . . . . . . . . . . . . . . . . . Allies | -11 -10 -10 -9 -9 -9 -8 -8 -8 -7 -6 -5 -4 -4 -4 -4 -3 -2 -1 -------- Run | Yrd Mat Min Mat Min Exi Min Mat Sto Fac Fac Fac Fac Was Fac Ext Res Res Acc Total Allies 5 | . 1 2 . . . . 1 . . . . . . . . 1 . . Largest Group 3 | . 1 3 2 . . . 1 . . . . . . . . 1 . . Highest-Rated Group 57 | . 10 57 41 . . . 10 . . . . . . . . 45 . . Highest-Rated Ally 45 | . 10 31 31 . . . 10 . . . . . . . . 45 . . Total Orders . | . . . . . . . . . . . . . . . . . . . Ally Attacks 41 | . . 3 38 . . . . . . . . . . . . . . . Total Damage 504 | . . 40 464 . . . . . . . . . . . . . . . Kills 14 | . . 1 13 . . . . . . . . . . . . . . . Allies Corrupted . | . . . . . . . . . . . . . . . . . . . Allies Melted . | . . . . . . . . . . . . . . . . . . . Intel | -11 -10 -10 -9 -9 -9 -8 -8 -8 -7 -6 -5 -4 -4 -4 -4 -3 -2 -1 ------- Run | Yrd Mat Min Mat Min Exi Min Mat Sto Fac Fac Fac Fac Was Fac Ext Res Res Acc Robot Analysis Total 2 | . . . 2 . . . . . . . . . . . . . . . Derelict Logs Recovered 1 | . . 1 . . . . . . . . . . . . . . . . Drone Launches . | . . . . . . . . . . . . . . . . . . . Drone Recoveries . | . . . . . . . . . . . . . . . . . . . Exploration | -11 -10 -10 -9 -9 -9 -8 -8 -8 -7 -6 -5 -4 -4 -4 -4 -3 -2 -1 ------------- Run | Yrd Mat Min Mat Min Exi Min Mat Sto Fac Fac Fac Fac Was Fac Ext Res Res Acc Turns Passed 15906 | 205 1425 648 3067 479 518 335 1930 3046 1102 1244 199 299 43 47 233 283 327 476 Spaces Moved 11003 | 102 758 212 1056 196 216 129 490 790 1790 1394 566 353 154 193 430 498 705 971 Core 78 | 3 . . . . . . . . . . . . . . . . . 75 Treads 3952 | 99 758 212 1056 196 216 129 490 790 6 . . . . . . . . . Legs . | . . . . . . . . . . . . . . . . . . . Wheels . | . . . . . . . . . . . . . . . . . . . Hover . | . . . . . . . . . . . . . . . . . . . Flight 6973 | . . . . . . . . . 1784 1394 566 353 154 193 430 498 705 896 Fastest Speed 17 | 50 160 160 240 240 240 240 240 240 26 26 23 26 26 17 20 23 27 27 Average Speed 97 | 157 160 246 240 240 240 240 240 241 27 26 25 26 26 24 25 25 27 29 Slowest Speed 320 | 160 160 320 240 240 240 240 240 242 242 26 91 92 26 26 96 96 100 100 Overloaded Moves 116 | . . . . . . . . . . . 31 . . 32 41 . . 12 Propulsion Burnouts . | . . . . . . . . . . . . . . . . . . . Robots Hopped 53 | . . . . . . . . . 17 7 1 4 8 2 3 5 4 2 Cave-ins Triggered 1 | . . . . . . . . . . . 1 . . . . . . . Exploration Rate (%) 43 | 5 98 62 97 43 61 33 32 90 34 33 15 12 88 6 45 21 23 28 Regions Visited 18 Branch Regions 6 Pre-discovered Areas . | . . . . . . . . . . . . . . . . . . . Known Exits Taken 7 | . . . 1 . . . 1 . 1 1 1 . . 1 . 1 . . Unknown Exits Taken 9 | 1 1 1 . 1 1 1 . 1 . . . . . . 1 . 1 . Scrap Searched 1 | . . 1 . . . . . . . . . . . . . . . . Spaces Dug 112 | . . . . . . . 1 7 19 12 11 . . . . 44 8 10 Terrain Destroyed 219 | . 24 . . . . . 1 43 57 12 11 . . . . 53 8 10 Melee 50 | . . . . . . . 1 7 19 12 11 . . . . . . . Projectile 26 | . . . . . . . . 8 . . . . . . . . 8 10 AOE 143 | . 24 . . . . . . 28 38 . . . . . . 53 . . Terrain Rammed . | . . . . . . . . . . . . . . . . . . . Walls Destroyed . | . . . . . . . . . . . . . . . . . . . Machines Disabled . | . . . . . . . . . . . . . . . . . . . Actions | -11 -10 -10 -9 -9 -9 -8 -8 -8 -7 -6 -5 -4 -4 -4 -4 -3 -2 -1 --------- Run | Yrd Mat Min Mat Min Exi Min Mat Sto Fac Fac Fac Fac Was Fac Ext Res Res Acc Total 15317 | 123 890 327 1403 203 217 155 1163 1585 2359 2237 597 555 148 190 549 644 826 1146 Wait 3377 | . 58 108 132 2 . 26 573 517 485 788 5 185 2 . 116 127 99 154 Move 10888 | 101 757 211 1055 195 215 128 489 789 1755 1380 563 346 142 188 423 487 697 967 Hop 45 | . . . . . . . . . 17 6 1 3 3 2 3 5 3 2 Pick Up 111 | 5 15 1 38 1 1 . 10 8 8 15 1 . 1 . 1 1 5 . Fast Attach 46 | 6 3 . 8 1 . . 4 4 4 1 3 1 . . 2 3 3 3 Attach 64 | 1 3 . 4 . . . 2 9 8 12 8 1 . . 2 6 2 6 Detach 20 | . 2 . 1 . . . . 4 3 2 2 1 . . 1 4 . . Swap 74 | . 2 1 13 . . 1 10 20 11 8 3 . . . . 3 . 2 Drop 119 | . 7 . 34 2 1 . 16 20 26 5 . . . . 1 2 5 . Fire 327 | 10 41 5 117 . . . 55 66 4 . . . . . . 6 12 11 Melee 199 | . . . . . . . 1 143 24 20 11 . . . . . . . Ram 1 | . . . . . . . . . . . . . . . . . . 1 Kick . | . . . . . . . . . . . . . . . . . . . Crush 12 | . 2 1 1 2 . . 3 3 . . . . . . . . . . Escape Stasis 34 | . . . . . . . . 2 14 . . 18 . . . . . . Rewire . | . . . . . . . . . . . . . . . . . . . Trap . | . . . . . . . . . . . . . . . . . . . Miscellaneous . | . . . . . . . . . . . . . . . . . . . Route ------- -11/Scrapyard -10/Materials (discovered 5 exits: *Mat x3 / *Min x2) -10/Mines (discovered 2 exits: *Mat x2) -9/Materials (discovered 4 exits: *Mat x3 / *Min) -9/Mines (discovered 2 exits: *Mat / *Exi) -9/Exiles -8/Mines -8/Materials (discovered 2 exits: *Sto x2) -8/Storage -7/Factory (discovered 6 exits: *Fac x4 / *Low x2) -6/Factory (discovered 4 exits: *Fac x4) -5/Factory (discovered 6 exits: *Fac x4 / Upp x2) -4/Factory -4/Waste -4/Factory (discovered 5 exits: Upp x2 / *Ext x2 / Arm) -4/Extension (discovered 2 exits: *Res / [*Cet]) -3/Research (discovered 5 exits: *Res x3 / Qua x2) -2/Research -1/Access (discovered 1 exit: Sur) History --------- Turn | Location | Event 18 | -11/Scrapyard | Discovered new exit (range 15) 206 | -11/Scrapyard | Entered Materials 235 | -10/Materials | Discovered new exit (range 6) 312 | -10/Materials | Build established: Mutant 641 | -10/Materials | Discovered new exit (range 16) 803 | -10/Materials | Discovered new exit (range 8) 978 | -10/Materials | Discovered new exit (range 16) 1430 | -10/Materials | Discovered new exit (range 16) 1480 | -10/Materials | Repaired Beam Cannon 1631 | -10/Materials | Entered Mines 1631 | -10/Mines | Accompanied by 1 ally 1950 | -10/Mines | Discovered new exit (range 6) 2116 | -10/Mines | Learned Materials emergency access door positions 2151 | -10/Mines | Discovered new exit (range 9) 2279 | -10/Mines | Entered Materials 2279 | -9/Materials | Accompanied by 2 allies 2279 | -9/Materials | Evolved 2 slots: Propulsion x1, Utility x1 2284 | -9/Materials | Led the pair of lost Derelicts to an unsafe place 2408 | -9/Materials | Repaired Huge Storage Unit 2519 | -9/Materials | Repaired Lgt. Treads 3291 | -9/Materials | Discovered new exit (range 8) 3627 | -9/Materials | Build established: Scavenger-Mutant 4362 | -9/Materials | Discovered new exit (range 16) 4401 | -9/Materials | Identified exit to Mines 4739 | -9/Materials | Discovered new exit (range 4) 5346 | -9/Materials | Entered Mines 5416 | -9/Mines | A weapon hastily lodged in a ceiling crevice suddenly fell to the ground 5672 | -9/Mines | Discovered new exit (range 8) 5704 | -9/Mines | Found the Drone Emporium 5715 | -9/Mines | Found Prototype Device 5715 | -9/Mines | Identified Thief Drone Bay 5813 | -9/Mines | Deemed a non-threat by the Exiles lab entrance 5815 | -9/Mines | Discovered new exit (range 5) 5825 | -9/Mines | Entered Exiles 5883 | -9/Exiles | Met 8R-AWN 5919 | -9/Exiles | Met EX-HEX 5991 | -9/Exiles | Met EX-BIN 6020 | -9/Exiles | Aligned with FarCom system 6022 | -9/Exiles | Given EX-Vault access code 6077 | -9/Exiles | Opened EX-Vault 6100 | -9/Exiles | Found Superbattery 6149 | -9/Exiles | Warned to stay clear of 0b10 Research branches 6216 | -9/Exiles | Met EX-DEC 6307 | -9/Exiles | Discovered new exit (range 15) 6343 | -9/Exiles | Left Exiles lab with Superbattery 6343 | -9/Exiles | Entered Mines 6659 | -8/Mines | Discovered new exit (range 9) 6678 | -8/Mines | Entered Materials 6678 | -8/Materials | Evolved 2 slots: Propulsion x1, Utility x1 6697 | -8/Materials | Identified exit to Storage 8022 | -8/Materials | Repaired Broken Rnf. Ion Engine 8153 | -8/Materials | Repaired Minigun 8608 | -8/Materials | Entered Storage 10042 | -8/Storage | Garrison activated, responded to threat 10079 | -8/Storage | Lost 3 parts (1p1n1u) 11573 | -8/Storage | Discovered new exit (range 16) 11654 | -8/Storage | Entered Factory 11654 | -7/Factory | Evolved 2 slots: Utility x2 11956 | -7/Factory | Build established: Hacker-Sprinter 11961 | -7/Factory | Discovered new exit (range 13) 11962 | -7/Factory | Discovered new exit (range 15) 12171 | -7/Factory | Fabricated Hacking Suite (x1) 12387 | -7/Factory | Build established: Hacker-Scout 12516 | -7/Factory | Discovered new exit (range 11) 12626 | -7/Factory | Identified exit to Lower Caves 12630 | -7/Factory | Identified exit to Factory 12756 | -7/Factory | Entered another Factory area 12756 | -6/Factory | Evolved 2 slots: Utility x2 12762 | -6/Factory | Identified exit to Factory 12963 | -6/Factory | Fabricated Hacking Suite (x1) 12970 | -6/Factory | Central database locked down 13125 | -6/Factory | Fabricated Cld. VTOL Module (x1) 13197 | -6/Factory | Fabricated Cld. VTOL Module? 13374 | -6/Factory | Fabricated Cld. VTOL Module (x1) 13512 | -6/Factory | Fabricated Cld. VTOL Module? 13589 | -6/Factory | Fabricated Hacking Suite? 13800 | -6/Factory | Repaired Lgt. Deuterium Engine 14000 | -6/Factory | Entered another Factory area 14000 | -5/Factory | Evolved 2 slots: Utility x2 14011 | -5/Factory | Central database locked down 14084 | -5/Factory | Identified exit to Factory 14084 | -5/Factory | Identified exit to Upper Caves 14181 | -5/Factory | Crushed by falling debris 14181 | -5/Factory | System corruption reached 10% 14199 | -5/Factory | Entered another Factory area 14199 | -4/Factory | Evolved 2 slots: Utility x2 14212 | -4/Factory | Lost 4 parts (1n2u1w) 14277 | -4/Factory | Build established: Wizard-Scout 14498 | -4/Factory | Sucked down chute 14498 | -4/Factory | Entered Waste 14502 | -4/Waste | Spotted C-40 Crusher 14513 | -4/Waste | EMP discharged 14513 | -4/Waste | Spotted C-40 Crusher 14513 | -4/Waste | Spotted C-40 Crusher 14514 | -4/Waste | Spotted C-40 Crusher 14515 | -4/Waste | Spotted C-40 Crusher 14515 | -4/Waste | Spotted C-40 Crusher 14535 | -4/Waste | Discovered new exit (range 22) 14541 | -4/Waste | Entered Factory 14559 | -4/Factory | Discovered new exit (range 10) 14567 | -4/Factory | Identified exit to Upper Caves 14567 | -4/Factory | Identified exit to Extension 14567 | -4/Factory | Identified exit to Armory 14588 | -4/Factory | Entered Extension 14606 | -4/Extension | Spotted B-86 Titan 14656 | -4/Extension | Spotted B-86 Titan 14702 | -4/Extension | Discovered new exit (range 22) 14703 | -4/Extension | Discovered new exit (range 21) 14821 | -4/Extension | Entered Research 14821 | -3/Research | Evolved 2 slots: Power x1, Propulsion x1 14828 | -3/Research | Spotted B-86 Titan 14990 | -3/Research | Repaired Lyr. Light Armor Plating 15043 | -3/Research | Identified exit to Quarantine 15066 | -3/Research | Identified exit to Research 15104 | -3/Research | Entered another Research area 15104 | -2/Research | Evolved 2 slots: Utility x2 15420 | -2/Research | Discovered new exit (range 22) 15429 | -2/Research | Spotted B-90 Cyclops 15431 | -2/Research | Entered Access 15431 | -1/Access | Evolved 2 slots: Utility x2 15497 | -1/Access | Fabricated Cld. VTOL Module (x1) 15647 | -1/Access | Identified exit to Surface 15858 | -1/Access | Found Fusion Bomb Launcher 15875 | -1/Access | Spotted B-99 Colossus 15884 | -1/Access | Core integrity fell below 50% 15888 | -1/Access | Spotted B-99 Colossus 15890 | -1/Access | Spotted B-99 Colossus 15894 | -1/Access | Core integrity fell below 20% 15907 | -1/Access | Destroyed by P-80 Master with Gamma Rifle Last Messages --------------- 15893_ Slug penetrates B-99 Colossus. 15893_ Slug penetrates Reinforced Barrier. 15893_ C-57 Dissector destroyed. 15893_ Knocked back. 15893_ Slug penetrates C-57 Dissector. 15893_ Penetrated by Slug. 15893_ Slug penetrates Reinforced Barrier. 15893_ Slug penetrates Sealed Heavy Doors. 15895_ B-99 Colossus activates siege mode. 15895_ Slammed into B-99 Colossus. 15897_ Acquired 5 matter. 15897_ Slug penetrates Sealed Heavy Doors. 15897_ Slug penetrates C-57 Dissector. 15897_ Penetrated by Slug. 15897_ Slug penetrates Sealed Heavy Doors. 15901_ Penetrated by Slug. 15901_ Q-thruster destroyed. 15904_ Imp. VTOL Module severed. 15905_ Slug penetrates Sealed Heavy Doors. 15905_ Penetrated by Slug. Map ----- +----------------------------------------------------+ | ?????????????????????????????????????????????????? | | ?????????????????????????????????????????????????? | | ?????????????????????????????????????????????????? | | ?????????????????????????????????????????????????? | | ?????????????????????????????????????????????????? | | ?????????????????????????????????????????????????? | | ?????????????????????????????????????????????????? | | ?????????????????????????????????????????????????? | | ?????????????????????????????????????????????????? | | ?????????????????????????????????????????????????? | | ?????????????????????????????????????????????????? | | ?????????????????????????????????????????????????? | | ?????????????????????????????????????????????????? | | ?????????????????????????????????????????????????? | | ?????????????????????????????????????????????????? | | ?????????????????????????????????????????????????? | | ?????????????????????????????????????????????????? | | ?????????????????????????????????????????????????? | | ?????????????????????????????????????????????????? | | ?????????????????????????????????????????????????? | | ?????????????????????????????????????????????????? | | ??????????????????????????#########???#+#????????? | | ??????????????????????????" #???# #???????## | | ??????????????????????????" BB #???# #????? | | ????????????????????????""" BB ##### ##??== | | ????????????????????????"@"c + = | | ????????????????????????""c " | | ??????????????????